bitfinex/quotes_BTCUSD_20250928
["timestamp","ask_amount","ask_price","bid_price","bid_amount"]
[1759026763979,0.03782772,109800.0,109790.0,0.79410785]
[1759026764186,0.03782772,109800.0,109790.0,0.82151394]
[1759026764701,0.03782772,109800.0,109790.0,0.53607394]
[1759026764917,0.03782772,109800.0,109790.0,0.63930799]
[1759026766106,0.03782772,109800.0,109790.0,0.82147394]
[1759026766818,0.03782772,109800.0,109790.0,1.12622934]
[1759026767263,0.03782772,109800.0,109790.0,0.82195394]
[1759026767485,0.03782772,109800.0,109790.0,0.91687394]
[1759026768870,0.03782772,109800.0,109790.0,0.65237394]
[1759026771887,0.18268283,109820.0,109800.0,0.0301519]
[1759026772086,6.192299,109810.0,109800.0,0.05130683]
[1759026772284,6.19870768,109810.0,109800.0,0.0600619]
[1759026772503,0.00640868,109810.0,109800.0,0.0600619]
[1759026772716,0.00640868,109810.0,109800.0,0.07827683]
[1759026773070,0.00640874,109810.0,109800.0,0.07827683]
[1759026774319,0.04296716,109810.0,109800.0,0.07827683]
[1759026774705,0.04296716,109810.0,109800.0,0.08937683]
[1759026775562,0.04296716,109810.0,109800.0,0.09337683]
[1759026775738,0.04296716,109810.0,109800.0,0.09737683]
[1759026776852,0.04296716,109810.0,109800.0,0.0791619]
[1759026777283,0.34772256,109810.0,109800.0,0.0791619]
[1759026778914,0.34968256,109810.0,109800.0,0.3618219]
[1759026779108,0.35233256,109810.0,109800.0,0.3597719]
[1759026779534,0.35233256,109810.0,109800.0,0.0741719]
[1759026779904,0.35233256,109810.0,109800.0,0.3597319]
[1759026780118,0.35233256,109810.0,109800.0,0.3182119]
[1759026780775,0.34772256,109810.0,109800.0,0.3232019]
[1759026780984,0.34968256,109810.0,109800.0,0.3617819]
[1759026781195,0.34968256,109810.0,109800.0,0.3597319]
[1759026782044,0.35233256,109810.0,109800.0,0.3602519]
[1759026782259,0.34968256,109810.0,109800.0,0.3602519]
[1759026786352,0.04492716,109810.0,109800.0,0.0791619]
[1759026786593,0.34968256,109810.0,109800.0,0.3622219]
[1759026787698,0.34968256,109810.0,109800.0,0.3600919]
[1759026789400,0.52921402,109810.0,109800.0,0.0741719]
[1759026789603,0.34973125,109810.0,109800.0,0.0741719]
[1759026789775,0.34973125,109810.0,109800.0,0.3603719]
[1759026790196,0.34708125,109810.0,109800.0,0.3603719]
[1759026792744,0.34708125,109810.0,109800.0,0.3603319]
[1759026794767,0.34708125,109810.0,109800.0,0.3624719]
[1759026795382,0.52921402,109810.0,109800.0,0.3602119]
[1759026796377,0.31226686,109810.0,109800.0,0.3602119]
[1759026796582,0.31226686,109810.0,109800.0,0.3623519]
[1759026797656,0.18481266,109820.0,109800.0,0.3653019]
[1759026797834,6.4970544,109810.0,109800.0,0.3653019]
[1759026798030,0.34272888,109810.0,109800.0,0.3653019]
[1759026799831,0.52486165,109810.0,109800.0,0.3653019]
[1759026800057,0.52486165,109810.0,109800.0,0.3613019]
[1759026800212,0.34272888,109810.0,109800.0,0.3633019]
[1759026800806,0.34272888,109810.0,109800.0,0.3613019]
[1759026801049,0.35701673,109810.0,109800.0,0.3653019]
[1759026802811,0.5391495,109810.0,109800.0,0.0792619]
[1759026803014,0.5391495,109810.0,109800.0,0.3651019]
[1759026803232,0.5391495,109810.0,109800.0,0.39250799]
[1759026804213,0.35701673,109810.0,109800.0,0.39250799]
[1759026806413,0.5391495,109810.0,109800.0,0.39250799]
[1759026808543,0.54556638,109810.0,109800.0,0.39250799]
[1759026809151,0.34914576,109810.0,109800.0,0.39250799]
[1759026810050,0.36343362,109810.0,109800.0,0.39250799]
[1759026812151,0.54556639,109810.0,109800.0,0.39250799]
[1759026814095,0.36343362,109810.0,109800.0,0.39250799]
[1759026814713,0.28726007,109810.0,109800.0,0.39250799]
[1759026816420,0.27297221,109810.0,109800.0,0.39250799]
[1759026819469,0.28726007,109810.0,109800.0,0.39250799]
[1759026820186,0.05867822,109810.0,109800.0,0.39250799]
[1759026820632,0.28726007,109810.0,109800.0,0.39250799]
[1759026826448,0.27297221,109810.0,109800.0,0.39250799]
[1759026827303,0.04439036,109810.0,109800.0,0.57465735]
[1759026827504,0.27297221,109810.0,109800.0,0.57449735]
[1759026828138,0.27297221,109810.0,109800.0,0.83899735]
[1759026828348,0.04439036,109810.0,109800.0,0.83899735]
[1759026828574,0.27297221,109810.0,109800.0,0.83899735]
[1759026829420,0.07737168,109810.0,109800.0,0.83899735]
[1759026829657,0.11420491,109810.0,109800.0,0.83899735]
[1759026829973,0.11420491,109810.0,109800.0,0.55331735]
[1759026830170,0.11420491,109810.0,109800.0,0.83895735]
[1759026830627,0.11420491,109810.0,109800.0,0.55331735]
[1759026830856,0.11420491,109810.0,109800.0,0.83891735]
[1759026831072,0.11420491,109810.0,109800.0,0.65676799]
[1759026832614,0.11420491,109810.0,109800.0,0.65672799]
[1759026834844,0.11420491,109810.0,109800.0,0.37116799]
[1759026835043,0.03683323,109810.0,109800.0,0.65672799]
[1759026835172,0.26541508,109810.0,109800.0,0.65672799]
[1759026835381,0.22858185,109810.0,109800.0,0.65672799]
[1759026835729,0.22858185,109810.0,109800.0,0.65664799]
[1759026835938,0.22858185,109810.0,109800.0,0.37116799]
[1759026836169,0.22858185,109810.0,109800.0,0.65664799]
[1759026838351,0.22858185,109810.0,109800.0,0.37116799]
[1759026838352,0.26629593,109810.0,109800.0,0.37116799]
[1759026838763,0.03771408,109810.0,109800.0,0.65656799]
[1759026838967,0.22858185,109810.0,109800.0,0.65656799]
[1759026839598,0.02875454,109810.0,109800.0,0.65656799]
[1759026841624,0.02875454,109810.0,109800.0,0.65652799]
[1759026841938,0.06587557,109810.0,109800.0,0.65652799]
[1759026842127,0.06587557,109810.0,109800.0,0.65648799]
[1759026842564,0.08016323,109810.0,109800.0,0.37116799]
[1759026842779,0.263396,109810.0,109800.0,0.65135799]
[1759026843451,0.05140869,109810.0,109800.0,0.65637799]
[1759026843880,0.27999054,109810.0,109800.0,0.65637799]
[1759026844097,0.05140869,109810.0,109800.0,0.65637799]
[1759026844310,0.27999054,109810.0,109800.0,0.65637799]
[1759026844749,0.05140869,109810.0,109800.0,0.65637799]
[1759026845736,0.03712103,109810.0,109800.0,0.65637799]
[1759026845942,0.22862832,109820.0,109800.0,0.39187799]
[1759026846140,6.192299,109810.0,109800.0,0.39187799]
[1759026846342,6.1987137,109810.0,109800.0,0.39187799]
[1759026846542,0.23609655,109810.0,109800.0,0.10157799]
[1759026846749,6.61121832,109810.0,109800.0,0.07142609]
[1759026846971,6.61121832,109810.0,109800.0,0.35730609]
[1759026847178,6.64750654,109810.0,109800.0,0.06742609]
[1759026847479,6.64750654,109810.0,109800.0,0.35130609]
[1759026847724,6.64750654,109810.0,109800.0,0.06342609]
[1759026847904,6.64750654,109810.0,109800.0,0.35126609]
[1759026848126,6.64750654,109810.0,109800.0,0.35326609]
[1759026848620,6.41892469,109810.0,109800.0,0.35326609]
[1759026848804,6.64750654,109810.0,109800.0,0.35326609]
[1759026853050,6.45262007,109810.0,109800.0,0.35326609]
[1759026853217,6.63475284,109810.0,109800.0,0.35326609]
[1759026853424,6.63475284,109810.0,109800.0,0.35314609]
[1759026855059,6.40617099,109810.0,109800.0,0.35314609]
[1759026855352,6.63475284,109810.0,109800.0,0.35314609]
[1759026856551,6.86333469,109810.0,109800.0,0.35314609]
[1759026859683,6.63475284,109810.0,109800.0,0.35314609]
[1759026859881,6.63475284,109810.0,109800.0,0.35298609]
[1759026860152,6.62046484,109810.0,109800.0,0.35298609]
[1759026864970,6.62687807,109810.0,109800.0,0.35298609]
[1759026866667,6.39829622,109810.0,109800.0,0.35298609]
[1759026866840,6.62687807,109810.0,109800.0,0.35298609]
[1759026868663,6.62687807,109810.0,109800.0,0.06742609]
[1759026868664,7.14077992,109810.0,109800.0,0.06742609]
[1759026868864,7.14077992,109810.0,109800.0,0.04002]
[1759026869243,7.14078182,109810.0,109800.0,0.04002]
[1759026869445,7.16819383,109810.0,109800.0,0.04002]
[1759026869718,7.16819383,109810.0,109800.0,0.03802]
[1759026870065,7.18248325,109810.0,109800.0,0.03802]
[1759026870450,7.18248325,109810.0,109800.0,0.03602]
[1759026871319,7.18448325,109810.0,109800.0,0.03602]
[1759026872219,7.18648325,109810.0,109800.0,0.03602]
[1759026875329,6.72931955,109810.0,109800.0,0.03602]
[1759026875539,7.18648325,109810.0,109800.0,0.03602]
[1759026876587,7.17219383,109810.0,109800.0,0.03602]
[1759026876794,7.01994582,109810.0,109800.0,0.03602]
[1759026877002,6.73462582,109810.0,109800.0,0.03602]
[1759026877430,7.01994582,109810.0,109800.0,0.03602]
[1759026879771,7.03423561,109810.0,109800.0,0.03602]
[1759026882054,6.74891561,109810.0,109800.0,0.03602]
[1759026882266,6.72919992,109810.0,109800.0,0.04117]
[1759026882490,7.03423561,109810.0,109800.0,0.04117]
[1759026888234,7.01994582,109810.0,109800.0,0.04117]
[1759026889183,6.73462582,109810.0,109800.0,0.04117]
[1759026889410,7.01982582,109810.0,109800.0,0.04117]
[1759026891241,7.03411503,109810.0,109800.0,0.04117]
[1759026892493,6.74891503,109810.0,109800.0,0.04117]
[1759026892708,7.03407503,109810.0,109800.0,0.04117]
[1759026894019,6.84691481,109810.0,109800.0,0.04117]
[1759026896975,6.88386607,109810.0,109800.0,0.04117]
[1759026897396,6.86957686,109810.0,109800.0,0.04117]
[1759026899308,6.8695752,109810.0,109800.0,0.04117]
[1759026900609,6.8695752,109810.0,109800.0,0.03602]
[1759026901084,6.8696705,109810.0,109800.0,0.03602]
[1759026902156,6.98364486,109810.0,109800.0,0.03602]
[1759026905313,7.3780459,109810.0,109800.0,0.03602]
[1759026906146,6.90925443,109810.0,109800.0,0.03602]
[1759026906327,6.58454305,109810.0,109800.0,0.04114]
[1759026906537,6.88862956,109810.0,109800.0,0.04114]
[1759026907149,6.60346956,109810.0,109800.0,0.04114]
[1759026907559,6.284264,109810.0,109800.0,0.04114]
[1759026907766,6.54209199,109810.0,109800.0,0.04114]
[1759026908171,6.25685199,109810.0,109800.0,0.04114]
[1759026908375,6.54209199,109810.0,109800.0,0.04114]
[1759026910264,6.84700768,109810.0,109800.0,0.04114]
[1759026910876,6.86129696,109810.0,109800.0,0.04114]
[1759026911077,6.86121696,109810.0,109800.0,0.04114]
[1759026915939,6.57605696,109810.0,109800.0,0.04114]
[1759026916198,6.86109696,109810.0,109800.0,0.04114]
[1759026916422,6.08424401,109810.0,109800.0,0.04114]
[1759026916653,6.35499473,109810.0,109800.0,0.04114]
[1759026917066,6.35299473,109810.0,109800.0,0.04114]
[1759026917362,6.35099473,109810.0,109800.0,0.04114]
[1759026917575,6.65591042,109810.0,109800.0,0.04114]
[1759026917818,6.5331275,109810.0,109800.0,0.04114]
[1759026918030,6.83804319,109810.0,109800.0,0.04114]
[1759026921120,6.67019949,109810.0,109800.0,0.04114]
[1759026921979,6.85233226,109810.0,109800.0,0.04114]
[1759026922393,6.85233226,109810.0,109800.0,0.0712919]
[1759026922394,6.0802438,109810.0,109800.0,0.0712919]
[1759026922812,6.0802438,109810.0,109800.0,0.09869813]
[1759026923635,6.0802438,109810.0,109800.0,0.0752919]
[1759026923839,6.0802438,109810.0,109800.0,0.09350683]
[1759026924047,6.0802438,109810.0,109800.0,0.09750683]
[1759026925393,6.07383033,109810.0,109800.0,0.09750683]
[1759026926940,0.03695126,109810.0,109800.0,0.26144126]
[1759026927159,0.28496647,109820.0,109810.0,0.0301519]
[1759026927424,6.3139599,109820.0,109810.0,0.0351519]
[1759026927665,6.3139599,109820.0,109810.0,0.0599019]
[1759026928047,6.3139599,109820.0,109810.0,0.07811517]
[1759026928433,0.00640343,109820.0,109810.0,0.07811517]
[1759026928680,5.848998,109820.0,109810.0,0.08011517]
[1759026928901,5.85540143,109820.0,109810.0,0.08011517]
[1759026929076,5.85540143,109820.0,109810.0,0.08211517]
[1759026929512,5.68612561,109820.0,109810.0,0.08211517]
[1759026929713,0.00640343,109820.0,109810.0,0.08211517]
[1759026929917,5.71651651,109820.0,109810.0,0.08211517]
[1759026930122,5.72291994,109820.0,109810.0,0.08211517]
[1759026931511,5.73720691,109820.0,109810.0,0.08211517]
[1759026932856,5.73080348,109820.0,109810.0,0.08211517]
[1759026933105,5.73080348,109820.0,109810.0,0.0639019]
[1759026935937,6.01572348,109820.0,109810.0,0.0639019]
[1759026936373,6.02212431,109820.0,109810.0,0.0639019]
[1759026936588,6.00783734,109820.0,109810.0,0.0639019]
[1759026938699,6.23634158,109820.0,109810.0,0.0639019]
[1759026939811,6.25062851,109820.0,109810.0,0.0639019]
[1759026942118,6.02212427,109820.0,109810.0,0.0639019]
[1759026942324,6.25062851,109820.0,109810.0,0.0639019]
[1759026946894,6.4327447,109820.0,109810.0,0.0639019]
[1759026948043,6.2156887,109820.0,109810.0,0.0639019]
[1759026949611,6.2156887,109820.0,109810.0,0.0589019]
[1759026950415,6.20140177,109820.0,109810.0,0.0589019]
[1759026950625,5.73436558,109820.0,109810.0,0.0640619]
[1759026950855,6.01924558,109820.0,109810.0,0.0640619]
[1759026951123,6.20136177,109820.0,109810.0,0.0589019]
[1759026951381,5.91648177,109820.0,109810.0,0.0589019]
[1759026951625,6.20136177,109820.0,109810.0,0.0589019]
[1759026953411,6.21564872,109820.0,109810.0,0.0589019]
[1759026954350,5.98714448,109820.0,109810.0,0.0589019]
[1759026954595,6.21564872,109820.0,109810.0,0.0589019]
[1759026955363,5.93076872,109820.0,109810.0,0.0589019]
[1759026955581,6.21564872,109820.0,109810.0,0.0589019]
[1759026957820,5.93076872,109820.0,109810.0,0.0589019]
[1759026958040,6.03353253,109820.0,109810.0,0.0640619]
[1759026958251,6.44415296,109820.0,109810.0,0.02875]
[1759026959077,6.15927296,109820.0,109810.0,0.02875]
[1759026959229,6.44415296,109820.0,109810.0,0.02875]
[1759026961907,5.98714448,109820.0,109810.0,0.03079]
[1759026962289,6.21564872,109820.0,109810.0,0.03391]
[1759026962492,6.21564872,109820.0,109810.0,0.03079]
[1759026962702,6.21564872,109820.0,109810.0,0.02875]
[1759026962913,6.15927296,109820.0,109810.0,0.02875]
[1759026963130,6.44415296,109820.0,109810.0,0.02875]
[1759026964107,6.15927296,109820.0,109810.0,0.02875]
[1759026964306,6.44415296,109820.0,109810.0,0.02875]
[1759026968644,6.15927296,109820.0,109810.0,0.02875]
[1759026968851,5.52014829,109820.0,109810.0,0.03391]
[1759026969046,6.03353253,109820.0,109810.0,0.0640619]
[1759026969537,6.26203677,109820.0,109810.0,0.0640619]
[1759026970836,5.97715677,109820.0,109810.0,0.0640619]
[1759026971047,5.96286982,109820.0,109810.0,0.0640619]
[1759026974047,5.97715649,109820.0,109810.0,0.0640619]
[1759026975706,0.28598525,109820.0,109810.0,0.0640619]
[1759026977589,0.51448949,109820.0,109810.0,0.0640619]
[1759026979460,0.05748101,109820.0,109810.0,0.0640619]
[1759026979653,0.51448949,109820.0,109810.0,0.0640619]
[1759026983951,0.51448949,109820.0,109810.0,0.09146573]
[1759026984703,0.31660409,109820.0,109810.0,0.09146573]
[1759026984867,0.22850424,109820.0,109810.0,0.09146573]
[1759026985070,0.22850424,109820.0,109810.0,0.109679]
[1759026987922,0.26596474,109820.0,109810.0,0.109679]
[1759026989167,0.26596474,109820.0,109810.0,0.394519]
[1759026989360,0.26596474,109820.0,109810.0,0.37630573]
[1759026991335,0.67658517,109820.0,109810.0,0.05615383]
[1759026992645,6.36775641,109820.0,109810.0,0.05615383]
[1759026992866,6.36775641,109820.0,109810.0,0.02875]
[1759026993088,6.40945429,109820.0,109810.0,0.02875]
[1759026993529,6.40945429,109820.0,109810.0,0.02475]
[1759026993881,6.41345429,109820.0,109810.0,0.02475]
[1759026996221,6.41354201,109820.0,109810.0,0.02475]
[1759026996831,6.41345429,109820.0,109810.0,0.02475]
[1759026998766,6.03282401,109820.0,109810.0,0.02475]
[1759027002617,5.72794157,109820.0,109810.0,0.02475]
[1759027002822,5.71365378,109820.0,109810.0,0.02475]
[1759027004420,5.99853378,109820.0,109810.0,0.02475]
[1759027005232,5.8166961,109820.0,109810.0,0.02475]
[1759027005637,5.83098454,109820.0,109810.0,0.02475]
[1759027005840,5.86879608,109820.0,109810.0,0.02475]
[1759027006814,5.85450764,109820.0,109810.0,0.02475]
[1759027007033,5.90479905,109820.0,109810.0,0.02475]
[1759027007252,5.90554169,109820.0,109810.0,0.02475]
[1759027007519,5.91030883,109820.0,109810.0,0.02475]
[1759027008617,5.90956619,109820.0,109810.0,0.02475]
[1759027011093,5.62468619,109820.0,109810.0,0.02475]
[1759027011301,6.01877575,109820.0,109810.0,0.02475]
[1759027011754,5.92385575,109820.0,109810.0,0.02475]
[1759027011954,5.99730373,109820.0,109810.0,0.02475]
[1759027013739,5.61750373,109820.0,109810.0,0.02475]
[1759027013979,6.00370275,109820.0,109810.0,0.02475]
[1759027014852,6.02517477,109820.0,109810.0,0.02475]
[1759027017184,6.01088521,109820.0,109810.0,0.02475]
[1759027019838,5.98682985,109820.0,109810.0,0.02475]
[1759027020039,5.60702985,109820.0,109810.0,0.02671]
[1759027020238,5.98682985,109820.0,109810.0,0.02671]
[1759027020455,6.00111967,109820.0,109810.0,0.02475]
[1759027024720,5.62131967,109820.0,109810.0,0.02475]
[1759027025033,6.00111967,109820.0,109810.0,0.02475]
[1759027026546,5.62131967,109820.0,109810.0,0.02475]
[1759027026738,6.00111967,109820.0,109810.0,0.02475]
[1759027028196,5.62131967,109820.0,109810.0,0.02475]
[1759027028411,6.00111967,109820.0,109810.0,0.02475]
[1759027030461,5.90619967,109820.0,109810.0,0.02475]
[1759027030672,5.62131967,109820.0,109810.0,0.02691]
[1759027030871,5.97964765,109820.0,109810.0,0.02994]
[1759027031080,6.00111967,109820.0,109810.0,0.02994]
[1759027031489,6.00111967,109820.0,109810.0,0.02691]
[1759027032956,5.98682985,109820.0,109810.0,0.02691]
[1759027035306,5.98682985,109820.0,109810.0,0.02475]
[1759027035982,6.00111945,109820.0,109810.0,0.02475]
[1759027037140,6.00113565,109820.0,109810.0,0.02475]
[1759027038805,6.00113564,109820.0,109810.0,0.02475]
[1759027039233,5.98684604,109820.0,109810.0,0.02475]
[1759027042063,6.00113564,109820.0,109810.0,0.02475]
[1759027050364,6.00113564,109820.0,109810.0,0.02985]
[1759027056410,6.00113564,109820.0,109810.0,0.02475]
[1759027059528,5.98684604,109820.0,109810.0,0.02475]
[1759027062638,5.62133563,109820.0,109810.0,0.02475]
[1759027062851,6.01030781,109820.0,109810.0,0.02475]
[1759027065353,5.63058781,109820.0,109810.0,0.02475]
[1759027065561,6.01026781,109820.0,109810.0,0.02475]
[1759027070147,5.99597822,109820.0,109810.0,0.02475]
[1759027070825,5.99598239,109820.0,109810.0,0.02475]
[1759027071490,5.61630239,109820.0,109810.0,0.02475]
[1759027071718,5.99598239,109820.0,109810.0,0.02475]
[1759027071867,5.99598239,109820.0,109810.0,0.02673]
[1759027072286,5.99598239,109820.0,109810.0,0.02994]
[1759027073249,6.01027187,109820.0,109810.0,0.02994]
[1759027074166,5.82810406,109820.0,109810.0,0.02994]
[1759027074387,5.47583797,109820.0,109810.0,0.02994]
[1759027074587,5.85551797,109820.0,109810.0,0.02994]
[1759027075495,5.44842405,109820.0,109810.0,0.02994]
[1759027075715,5.71889457,109820.0,109810.0,0.02994]
[1759027075968,5.75600012,109820.0,109810.0,0.02994]
[1759027076187,5.28262393,109820.0,109810.0,0.25862845]
[1759027076414,0.03710555,109820.0,109810.0,0.46816592]
[1759027076855,0.28976,109830.0,109810.0,0.28603315]
[1759027077074,5.28345793,109820.0,109810.0,0.0541347]
[1759027077289,0.47185984,109830.0,109810.0,0.07234797]
[1759027077511,5.245518,109820.0,109810.0,0.07534797]
[1759027077729,5.245518,109820.0,109810.0,0.08155797]
[1759027078165,5.225518,109820.0,109810.0,0.08155797]
[1759027078378,0.47185984,109830.0,109810.0,0.31024642]
[1759027078598,5.225518,109820.0,109810.0,0.0601347]
[1759027078816,5.225518,109820.0,109810.0,0.07534797]
[1759027079259,5.225518,109820.0,109810.0,0.07634797]
[1759027079480,5.26333555,109820.0,109810.0,0.07955797]
[1759027079717,0.03781755,109820.0,109810.0,0.30824642]
[1759027079951,0.03781755,109820.0,109810.0,0.28903315]
[1759027080131,0.48614623,109830.0,109810.0,0.28903315]
[1759027080344,5.225518,109820.0,109810.0,0.0601347]
[1759027080547,5.225518,109820.0,109810.0,0.07834797]
[1759027080959,5.225518,109820.0,109810.0,0.08155797]
[1759027081378,5.26247756,109820.0,109810.0,0.08155797]
[1759027081579,0.03695956,109820.0,109810.0,0.31024642]
[1759027081883,0.48610623,109830.0,109810.0,0.29203315]
[1759027082094,5.225518,109820.0,109810.0,0.0571347]
[1759027082327,5.225518,109820.0,109810.0,0.07634797]
[1759027082719,5.225518,109820.0,109810.0,0.07955797]
[1759027083129,5.225518,109820.0,109810.0,0.07855797]
[1759027083347,5.225518,109820.0,109810.0,0.31024642]
[1759027083594,5.225518,109820.0,109810.0,0.29203315]
[1759027085720,5.26272594,109820.0,109810.0,0.29203315]
[1759027085924,0.03720794,109820.0,109810.0,0.29203315]
[1759027086149,0.48610623,109830.0,109810.0,0.29203315]
[1759027086354,5.225518,109820.0,109810.0,0.0601347]
[1759027086574,5.225518,109820.0,109810.0,0.30703642]
[1759027086801,5.225518,109820.0,109810.0,0.28882315]
[1759027087001,5.225518,109820.0,109810.0,0.28903315]
[1759027088211,5.23190686,109820.0,109810.0,0.0603447]
[1759027088420,5.23190686,109820.0,109810.0,0.0613447]
[1759027088421,0.00638886,109820.0,109810.0,0.0613447]
[1759027088893,0.00638886,109820.0,109810.0,0.0603447]
[1759027089296,0.00638886,109820.0,109810.0,0.0633447]
[1759027091140,0.04293323,109820.0,109810.0,0.0633447]
[1759027094823,0.04293323,109820.0,109810.0,0.08155797]
[1759027095203,0.04293323,109820.0,109810.0,0.0633447]
[1759027097973,0.04293323,109820.0,109810.0,0.08155797]
[1759027098408,0.04293323,109820.0,109810.0,0.0633447]
[1759027099744,0.05721966,109820.0,109810.0,0.0633447]
[1759027105014,0.23933585,109820.0,109810.0,0.0633447]
[1759027107059,0.47476984,109830.0,109810.0,0.0633447]
[1759027107272,5.40763419,109820.0,109810.0,0.0633447]
[1759027107478,0.18211619,109820.0,109810.0,0.0633447]
[1759027107966,0.18211619,109820.0,109810.0,0.0603447]
[1759027108382,0.18211619,109820.0,109810.0,0.0613447]
[1759027108770,0.21835427,109820.0,109810.0,0.0603447]
[1759027109514,0.21835427,109820.0,109810.0,0.0613447]
[1759027109862,0.21835427,109820.0,109810.0,0.0603447]
[1759027110068,0.21835427,109820.0,109810.0,0.0633447]
[1759027111247,0.03623808,109820.0,109810.0,0.0633447]
[1759027111471,0.48901629,109830.0,109810.0,0.0633447]
[1759027111621,5.225518,109820.0,109810.0,0.0633447]
[1759027111817,5.26296463,109820.0,109810.0,0.0633447]
[1759027112081,0.03744663,109820.0,109810.0,0.0633447]
[1759027112482,0.48901629,109830.0,109810.0,0.0633447]
[1759027112483,0.48901629,109830.0,109810.0,0.0603447]
[1759027112712,5.225518,109820.0,109810.0,0.0603447]
[1759027113102,5.227538,109820.0,109810.0,0.0603447]
[1759027113306,0.00202,109820.0,109810.0,0.0603247]
[1759027113504,0.00202,109820.0,109810.0,0.0573247]
[1759027113960,0.00202,109820.0,109810.0,0.0593247]
[1759027114375,0.00202,109820.0,109810.0,0.0583247]
[1759027114582,0.00202,109820.0,109810.0,0.0573247]
[1759027114760,0.00202,109820.0,109810.0,0.0603247]
[1759027114990,0.0382173,109820.0,109810.0,0.0603247]
[1759027115779,0.22033349,109820.0,109810.0,0.0601347]
[1759027115980,0.22340349,109820.0,109810.0,0.0581547]
[1759027116351,5.44892149,109820.0,109810.0,0.0581547]
[1759027116554,5.44892149,109820.0,109810.0,0.03075]
[1759027117361,5.44892149,109820.0,109810.0,0.02775]
[1759027117611,5.41272419,109820.0,109810.0,0.02475]
[1759027118013,5.41272419,109820.0,109810.0,0.02575]
[1759027118463,5.45031911,109820.0,109810.0,0.02575]
[1759027119085,5.45673105,109820.0,109810.0,0.02675]
[1759027120101,5.74125105,109820.0,109810.0,0.02675]
[1759027120302,5.73818105,109820.0,109810.0,0.02675]
[1759027120535,5.57924805,109820.0,109810.0,0.02675]
[1759027121119,5.59353562,109820.0,109810.0,0.02675]
[1759027123452,5.12689943,109820.0,109810.0,0.02675]
[1759027123665,5.40939943,109820.0,109810.0,0.032]
[1759027125215,5.12487943,109820.0,109810.0,0.032]
[1759027125590,5.40939943,109820.0,109810.0,0.032]
[1759027125740,5.39511186,109820.0,109810.0,0.032]
[1759027125946,5.39511186,109820.0,109810.0,0.05940476]
[1759027126524,5.11059186,109820.0,109810.0,0.05940476]
[1759027126821,5.39511186,109820.0,109810.0,0.05940476]
[1759027127000,5.11059186,109820.0,109810.0,0.05940476]
[1759027127176,5.11059186,109820.0,109810.0,0.07761803]
[1759027129000,5.12487848,109820.0,109810.0,0.07761803]
[1759027130808,4.90640962,109820.0,109810.0,0.07761803]
[1759027131146,0.01428662,109820.0,109810.0,0.07761803]
[1759027135052,0.0520404,109820.0,109810.0,0.07761803]
[1759027136736,0.0520404,109820.0,109810.0,0.2899027]
[1759027136868,0.0520404,109820.0,109810.0,0.27168943]
[1759027137717,0.03775378,109820.0,109810.0,0.27168943]
[1759027137950,0.005,109830.0,109810.0,0.27168943]
[1759027138217,4.892123,109820.0,109810.0,0.26849943]
[1759027138865,4.892123,109820.0,109810.0,0.27153943]
[1759027139314,4.892123,109820.0,109810.0,0.27053943]
[1759027139946,4.9294387,109820.0,109810.0,0.27053943]
[1759027140150,0.0373157,109820.0,109810.0,0.27053943]
[1759027140369,0.005,109830.0,109810.0,0.55501943]
[1759027140579,4.892123,109820.0,109810.0,0.55297943]
[1759027141224,4.892123,109820.0,109810.0,0.55501943]
[1759027141467,4.892123,109820.0,109810.0,0.27053943]
[1759027142311,4.892123,109820.0,109810.0,0.26953943]
[1759027142771,4.89852879,109820.0,109810.0,0.26953943]
[1759027142981,0.00640579,109820.0,109810.0,0.26953943]
[1759027143643,0.00640579,109820.0,109810.0,0.27053943]
[1759027143844,0.00640579,109820.0,109810.0,0.27153943]
[1759027144077,0.00640579,109820.0,109810.0,0.27053943]
[1759027144281,0.00640579,109820.0,109810.0,0.27253943]
[1759027144697,0.00640579,109820.0,109810.0,0.27553943]
[1759027145295,0.04413642,109820.0,109810.0,0.27553943]
[1759027147116,0.04413596,109820.0,109810.0,0.27553943]
[1759027151024,0.05842227,109820.0,109810.0,0.27553943]
[1759027151439,0.05842227,109820.0,109810.0,0.55997943]
[1759027151901,0.05842227,109820.0,109810.0,1.12927795]
[1759027152101,0.05842227,109820.0,109810.0,0.84483795]
[1759027152339,0.05842227,109820.0,109810.0,1.12927795]
[1759027152917,0.05842227,109820.0,109810.0,1.12923795]
[1759027154828,0.05842227,109820.0,109810.0,0.82443943]
[1759027154987,0.05842621,109820.0,109810.0,0.82443943]
[1759027155623,0.03773063,109820.0,109810.0,0.55993943]
[1759027155826,0.005,109830.0,109820.0,0.18211619]
[1759027156022,0.04922883,109830.0,109820.0,0.49002471]
[1759027156227,0.04922883,109830.0,109820.0,0.51488471]
[1759027156439,0.04922883,109830.0,109820.0,0.54228288]
[1759027157021,0.04922883,109830.0,109820.0,0.82668288]
[1759027157223,0.04922883,109830.0,109820.0,0.52188436]
[1759027157680,0.04922883,109830.0,109820.0,0.52588436]
[1759027157877,0.04922883,109830.0,109820.0,0.52988436]
[1759027159744,0.04281933,109830.0,109820.0,0.52988436]
[1759027160516,0.04281933,109830.0,109820.0,0.24548436]
[1759027160718,0.04281933,109830.0,109820.0,0.52988436]
[1759027160929,0.04281933,109830.0,109820.0,0.79438436]
[1759027161365,0.04281933,109830.0,109820.0,0.79434436]
[1759027163830,0.0492267,109830.0,109820.0,0.50998436]
[1759027164034,0.04281933,109830.0,109820.0,0.79434436]
[1759027165182,0.04281933,109830.0,109820.0,0.50998436]
[1759027165355,0.04281933,109830.0,109820.0,0.79434436]
[1759027166023,0.04922663,109830.0,109820.0,0.79434436]
[1759027166649,0.04922663,109830.0,109820.0,0.50998436]
[1759027166923,0.04922663,109830.0,109820.0,0.79434436]
[1759027171949,0.00910249,109860.0,109830.0,0.0301519]
[1759027172144,4.892123,109850.0,109840.0,0.28432]
[1759027172343,4.892123,109850.0,109840.0,0.3071]
[1759027172522,5.07418945,109850.0,109840.0,0.3071]
[1759027172925,5.11124843,109850.0,109840.0,0.3071]
[1759027173138,5.1255325,109850.0,109840.0,0.3071]
[1759027173754,5.1255325,109850.0,109840.0,0.02278]
[1759027176612,5.11124843,109850.0,109840.0,0.02278]
[1759027181070,5.1255325,109850.0,109840.0,0.02278]
[1759027183222,5.4098525,109850.0,109840.0,0.02278]
[1759027183489,5.4098125,109850.0,109840.0,0.02278]
[1759027183744,5.1255325,109850.0,109840.0,0.02278]
[1759027183967,5.41646546,109850.0,109840.0,0.02278]
[1759027184685,5.46595834,109850.0,109840.0,0.02278]
[1759027184916,5.56599589,109850.0,109840.0,0.02278]
[1759027185143,5.57075908,109850.0,109840.0,0.02278]
[1759027185594,5.59816549,109850.0,109840.0,0.02278]
[1759027186255,0.18211619,109820.0,109810.0,0.07295609]
[1759027186503,5.08065215,109820.0,109810.0,0.07295609]
[1759027187132,5.0949396,109820.0,109810.0,0.07295609]